bitfinex/quotes_SOLUSD_20251126
["timestamp","ask_amount","ask_price","bid_price","bid_amount"]
[1764170663302,16.308864,136.42,136.37,25.7654067]
[1764170663607,8.80994492,136.43,136.38,0.71]
[1764170663608,7.47282014,136.41,136.38,0.71]
[1764170663802,7.47282014,136.41,136.37,33.94822684]
[1764170663983,8.19282014,136.42,136.38,0.71]
[1764170664182,7.47282014,136.41,136.38,0.71]
[1764170664822,7.47282014,136.39,136.37,0.1]
[1764170664988,7.47282014,136.38,136.37,0.1]
[1764170665324,7.47282014,136.39,136.37,7.43299112]
[1764170665498,7.47282014,136.38,136.37,0.1]
[1764170665689,7.47282014,136.38,136.37,7.43299112]
[1764170665890,0.72,136.39,136.37,0.1]
[1764170666097,8.19282014,136.39,136.37,0.1]
[1764170667187,0.72,136.38,136.37,0.1]
[1764170667388,8.19282014,136.38,136.37,0.1]
[1764170672823,2.9399875,136.41,136.37,0.81]
[1764170673022,7.47282014,136.43,136.37,4.11]
[1764170673320,7.47282014,136.41,136.37,4.11]
[1764170673530,7.47282014,136.4,136.37,4.11]
[1764170673718,7.47282014,136.41,136.37,4.11]
[1764170673917,8.19282014,136.42,136.38,0.71]
[1764170674320,0.72,136.42,136.39,25.66170539]
[1764170674630,8.19282014,136.42,136.39,25.66170539]
[1764170674816,23.78168414,136.43,136.4,0.71]
[1764170674996,23.78168414,136.43,136.39,25.66170539]
[1764170675196,24.50168414,136.43,136.39,33.84452553]
[1764170675504,24.50168414,136.43,136.39,26.37170539]
[1764170676194,16.308864,136.43,136.39,25.66170539]
[1764170676501,7.24953452,136.47,136.42,7.47282014]
[1764170676702,23.78168414,136.48,136.43,10.77282014]
[1764170676915,0.72,136.49,136.44,7.47282014]
[1764170677095,19.43519094,136.52,136.44,0.71]
[1764170677096,0.72,136.51,136.44,0.71]
[1764170677300,0.72,136.51,136.43,3.3]
[1764170677301,7.47282014,136.49,136.45,0.71]
[1764170677500,7.47282014,136.49,136.43,4.01]
[1764170677806,8.19282014,136.49,136.44,8.18282014]
[1764170678318,8.19282014,136.48,136.45,7.32869182]
[1764170678834,0.72,136.47,136.44,7.32918866]
[1764170679129,7.47282014,136.45,136.44,7.32918866]
[1764170679636,8.19282014,136.45,136.44,7.32918866]
[1764170679807,7.47282014,136.46,136.44,7.32918866]
[1764170680011,8.19282014,136.46,136.44,7.32918866]
[1764170680207,8.19282014,136.45,136.44,7.32918866]
[1764170680405,8.19282014,136.45,136.43,18.32369833]
[1764170680406,7.47282014,136.45,136.43,25.65346451]
[1764170680604,7.47282014,136.44,136.42,10.63022329]
[1764170680817,8.19282014,136.45,136.42,28.95598197]
[1764170681017,8.19282014,136.45,136.42,25.65598197]
[1764170683335,17.028864,136.45,136.42,25.65598197]
[1764170683540,8.19282014,136.45,136.42,7.33022329]
[1764170685734,16.308864,136.46,136.42,7.33022329]
[1764170685735,7.47282014,136.44,136.42,7.33022329]
[1764170686108,8.19282014,136.43,136.41,61.9]
[1764170686309,7.47282014,136.42,136.39,3.3]
[1764170686503,4.90036271,136.42,136.39,3.3]
[1764170686740,4.90036271,136.43,136.39,3.3]
[1764170686944,0.72,136.44,136.39,3.3]
[1764170687160,4.90036271,136.43,136.39,3.97]
[1764170687542,5.62036271,136.43,136.39,3.97]
[1764170687955,4.90036271,136.43,136.4,7.33137829]
[1764170688150,4.90036271,136.43,136.4,8.00137829]
[1764170688340,4.90036271,136.43,136.4,25.65982403]
[1764170688663,4.90036271,136.43,136.4,8.00137829]
[1764170688959,4.90036271,136.42,136.39,3.3]
[1764170689127,4.90036271,136.42,136.39,3.97]
[1764170689329,4.90036271,136.42,136.39,73.20181303]
[1764170689743,5.62036271,136.43,136.39,73.20181303]
[1764170689936,5.62036271,136.43,136.39,96.43196531]
[1764170690260,0.72,136.43,136.39,96.43196531]
[1764170690963,21.20922671,136.44,136.4,0.67]
[1764170691125,21.92922671,136.44,136.4,0.67]
[1764170691432,5.62036271,136.47,136.42,4.90036271]
[1764170691638,5.62036271,136.47,136.43,8.20036271]
[1764170691935,16.308864,136.45,136.44,7.32922896]
[1764170692251,5.62036271,136.47,136.44,7.32922896]
[1764170692547,16.308864,136.45,136.44,7.32922896]
[1764170693127,16.308864,136.45,136.43,3.3]
[1764170693442,17.028864,136.45,136.43,10.62971289]
[1764170693647,16.308864,136.44,136.43,28.95412834]
[1764170696650,16.308864,136.45,136.43,29.62412834]
[1764170696848,16.308864,136.44,136.43,28.95412834]
[1764170697036,16.308864,136.44,136.43,10.62971289]
[1764170698052,16.308864,136.48,136.43,93.12449105]
[1764170698253,21.20922671,136.48,136.45,7.32869182]
[1764170698452,21.92922671,136.48,136.45,7.32869182]
[1764170698653,16.308864,136.47,136.45,7.32869182]
[1764170699857,16.308864,136.46,136.45,7.32869182]
[1764170700155,16.308864,136.46,136.44,7.32908123]
[1764170700360,4.90036271,136.45,136.44,7.32908123]
[1764170700534,16.308864,136.44,136.42,10.6097789]
[1764170700734,16.308864,136.43,136.42,10.6097789]
[1764170701228,4.90036271,136.48,136.42,34.79022343]
[1764170701433,16.308864,136.44,136.43,5.57036271]
[1764170701631,16.308864,136.44,136.43,61.9]
[1764170702250,16.308864,136.44,136.43,74.80012889]
[1764170702441,16.308864,136.47,136.43,93.12454434]
[1764170702640,16.308864,136.45,136.44,3.95]
[1764170702856,21.20922671,136.49,136.44,8.85036271]
[1764170703071,16.308864,136.48,136.44,8.85036271]
[1764170703249,17.028864,136.48,136.44,8.18036271]
[1764170703430,21.92922671,136.48,136.44,3.95]
[1764170703830,21.20922671,136.48,136.45,0.67]
[1764170704041,4.90036271,136.49,136.45,0.67]
[1764170704247,4.90036271,136.48,136.45,7.32869182]
[1764170704445,16.308864,136.46,136.45,7.99869182]
[1764170704753,16.308864,136.5,136.45,26.32042139]
[1764170704956,4.0,136.51,136.45,30.5507841]
[1764170705267,4.90036271,136.47,136.44,7.32911748]
[1764170705443,4.90036271,136.46,136.44,7.32911748]
[1764170705828,16.308864,136.45,136.44,7.32911748]
[1764170708570,19.89857762,136.57,136.45,8.80994492]
[1764170708784,0.72,136.58,136.53,4.90036271]
[1764170708939,5.62036271,136.58,136.54,3.28]
[1764170709143,17.028864,136.58,136.54,3.28]
[1764170709340,4.90036271,136.55,136.51,4.90036271]
[1764170709565,4.90036271,136.55,136.52,3.28]
[1764170710146,0.72,136.55,136.52,3.28]
[1764170710347,17.028864,136.55,136.52,3.28]
[1764170710548,17.028864,136.55,136.53,7.32439756]
[1764170710746,16.308864,136.55,136.53,7.32439756]
[1764170711157,3.28,136.58,136.53,25.63539148]
[1764170711474,0.2,136.59,136.55,12.9743048]
[1764170711642,0.2,136.59,136.56,3.28]
[1764170712367,0.2,136.59,136.57,13.6443048]
[1764170712572,0.2,136.59,136.58,20.29602101]
[1764170712753,0.2,136.59,136.58,7.32171621]
[1764170712946,0.2,136.59,136.58,20.96602101]
[1764170713377,0.2,136.59,136.58,21.25034415]
[1764170713763,0.2,136.62,136.6,12.9743048]
[1764170713958,0.2,136.62,136.61,16.2543048]
[1764170714373,0.2,136.62,136.61,3.28]
[1764170714687,0.2,136.62,136.61,24.25441313]
[1764170714890,1e-08,136.67,136.65,0.28432314]
[1764170715171,1e-08,136.67,136.66,16.53862794]
[1764170715373,1e-08,136.67,136.66,17.21862794]
[1764170715556,1e-08,136.67,136.65,8.80994492]
[1764170715557,1e-08,136.67,136.65,12.9743048]
[1764170715758,1e-08,136.67,136.66,16.2543048]
[1764170716275,1e-08,136.67,136.66,26.02857286]
[1764170716477,1e-08,136.67,136.66,16.2543048]
[1764170716688,1e-08,136.67,136.66,10.59743011]
[1764170717477,1e-08,136.67,136.66,24.25173491]
[1764170718072,29.99316881,136.67,136.63,7.31903621]
[1764170718263,0.71,136.66,136.63,7.31903621]
[1764170718469,13.6843048,136.66,136.63,10.59903621]
[1764170718883,12.9743048,136.64,136.63,3.28]
[1764170719184,13.6843048,136.65,136.62,7.31950129]
[1764170719375,0.71,136.64,136.62,7.31950129]
[1764170720185,16.308864,136.65,136.62,25.61843263]
[1764170720400,29.9931688,136.65,136.62,25.61843263]
[1764170720576,13.6843048,136.64,136.61,3.28]
[1764170720894,0.71,136.64,136.61,10.60003898]
[1764170721089,16.308864,136.64,136.61,10.60003898]
[1764170721600,0.71,136.63,136.61,10.60003898]
[1764170721911,17.018864,136.64,136.61,10.60003898]
[1764170722062,29.2831688,136.64,136.61,28.90030982]
[1764170722260,29.2831688,136.65,136.61,28.90030982]
[1764170722670,12.9743048,136.64,136.61,10.60003898]
[1764170722992,13.6843048,136.64,136.61,10.60003898]
[1764170723496,0.71,136.64,136.61,10.60003898]
[1764170723680,13.6843048,136.64,136.61,10.60003898]
[1764170723867,29.2831688,136.65,136.61,28.90030982]
[1764170724068,13.6843048,136.64,136.61,10.60003898]
[1764170724376,12.9743048,136.63,136.6,3.28]
[1764170724577,13.6843048,136.63,136.6,3.28]
[1764170724792,13.6843048,136.63,136.61,7.32010833]
[1764170724990,12.9743048,136.64,136.61,7.32010833]
[1764170725290,16.308864,136.62,136.61,25.62037917]
[1764170725495,16.308864,136.62,136.61,7.32010833]
[1764170725874,16.308864,136.65,136.61,25.62037917]
[1764170726074,1e-08,136.67,136.64,12.9743048]
[1764170726394,1e-08,136.67,136.65,16.2543048]
[1764170726605,16.30886401,136.67,136.66,3.28]
[1764170726897,16.30886401,136.67,136.66,10.59743011]
[1764170727203,17.01886401,136.67,136.66,3.28]
[1764170727695,17.01886401,136.67,136.65,7.31796426]
[1764170728393,29.9931688,136.66,136.59,7.32118017]
[1764170728691,12.9743048,136.63,136.6,3.28]
[1764170728996,12.9743048,136.63,136.6,10.60056903]
[1764170729191,12.9743048,136.62,136.6,3.28]
[1764170729374,12.9743048,136.61,136.6,3.28]
[1764170729691,13.6843048,136.61,136.58,7.32171621]
[1764170729878,16.308864,136.61,136.58,7.32171621]
[1764170730071,16.308864,136.61,136.58,25.62600673]
[1764170730266,27.1041952,136.66,136.58,25.62600673]
[1764170730267,12.9743048,136.64,136.59,13.93862794]
[1764170730483,16.308864,136.65,136.61,12.9743048]
[1764170730887,17.018864,136.65,136.62,25.61850387]
[1764170731285,1e-08,136.67,136.62,25.61850387]
[1764170731479,12.9743048,136.65,136.62,25.61850387]
[1764170731682,12.9743048,136.64,136.62,7.31957253]
[1764170732093,13.6843048,136.64,136.62,7.31957253]
[1764170732471,12.9743048,136.65,136.62,25.61850387]
[1764170732673,29.9931688,136.65,136.62,25.61850387]
[1764170732874,17.018864,136.65,136.62,25.61850387]
[1764170733585,16.308864,136.65,136.62,25.61850387]
[1764170733795,16.308864,136.65,136.63,3.28]
[1764170734984,16.308864,136.65,136.64,7.31850117]
[1764170735509,0.71000001,136.67,136.64,25.61475409]
[1764170735510,1e-08,136.67,136.64,25.61475409]
[1764170735810,1e-08,136.67,136.65,12.9743048]
[1764170735972,1e-08,136.67,136.66,25.34857286]
[1764170736170,1e-08,136.67,136.66,26.02857286]
[1764170736573,1e-08,136.67,136.66,3.56432314]
[1764170736790,1e-08,136.67,136.66,16.2543048]
[1764170736997,1e-08,136.67,136.66,23.57173491]
[1764170737869,1e-08,136.67,136.66,24.25173491]
[1764170738069,1e-08,136.67,136.66,23.57173491]
[1764170738267,1e-08,136.67,136.66,24.25173491]
[1764170738877,1e-08,136.67,136.66,24.53605805]
[1764170739782,1e-08,136.67,136.66,33.34600297]
[1764170741274,1e-08,136.67,136.66,20.37169817]
[1764170741593,1e-08,136.67,136.66,33.34600297]
[1764170744974,1e-08,136.67,136.66,7.31743011]
[1764170745176,1e-08,136.67,136.66,23.57173491]
[1764170745594,1e-08,136.67,136.66,24.24173491]
[1764170746104,1e-08,136.67,136.66,33.33600297]
[1764170748804,1e-08,136.67,136.66,27.79505159]
[1764170750307,1e-08,136.67,136.66,20.36169817]
[1764170750476,1e-08,136.67,136.66,27.79505159]
[1764170751587,1e-08,136.67,136.66,18.31510667]
[1764170751899,1e-08,136.67,136.66,18.98510667]
[1764170752301,1e-08,136.67,136.66,18.31510667]
[1764170752514,1e-08,136.67,136.66,7.31743011]
[1764170752515,0.70000001,136.67,136.66,7.31743011]
[1764170753787,3.82387446,136.67,136.66,7.31743011]
[1764170753992,3.82387446,136.67,136.65,7.31778115]
[1764170754208,3.82387445,136.66,136.65,7.31778115]
[1764170754581,17.008864,136.66,136.65,7.31778115]
[1764170754885,24.44945973,136.66,136.65,7.31778115]
[1764170755681,24.44945973,136.66,136.64,7.31850117]
[1764170755887,0.7,136.65,136.64,7.31850117]
[1764170756603,16.308864,136.66,136.64,7.31850117]
[1764170756989,0.7,136.65,136.64,7.31850117]
[1764170758412,16.308864,136.66,136.64,14.7590969]
[1764170758610,0.7,136.65,136.64,7.31850117]
[1764170760291,16.308864,136.66,136.64,7.31850117]
[1764170760494,17.008864,136.66,136.65,3.28]
[1764170761003,1e-08,136.67,136.65,10.72059573]
[1764170761202,0.70000001,136.67,136.65,3.28]
[1764170762281,8.14059574,136.67,136.66,7.31743011]
[1764170762505,0.70000001,136.67,136.66,7.31743011]
[1764170762730,0.70000001,136.67,136.65,10.59776298]
[1764170762889,24.44945974,136.67,136.65,10.59776298]
[1764170763094,24.44945974,136.67,136.65,10.59787169]
[1764170763306,17.00886401,136.67,136.65,10.59787169]
[1764170763514,16.30886401,136.67,136.65,10.59787169]
[1764170764091,1e-08,136.67,136.65,18.03846742]
[1764170764290,1e-08,136.67,136.66,7.31743011]
[1764170766597,1e-08,136.67,136.66,14.75802584]
[1764170766786,1e-08,136.67,136.66,7.31743011]
[1764170767188,0.72000001,136.67,136.66,10.59743011]
[1764170767694,1e-08,136.67,136.66,10.59743011]
[1764170768381,0.72000001,136.67,136.66,10.59743011]
[1764170769112,1e-08,136.67,136.66,10.59743011]
[1764170769484,1e-08,136.67,136.66,80.60802584]
[1764170770104,1e-08,136.67,136.66,27.8022939]
[1764170770287,1e-08,136.67,136.66,20.36169817]
[1764170770482,1e-08,136.67,136.66,18.32234898]
[1764170771018,1e-08,136.67,136.66,27.8022939]
[1764170771490,1e-08,136.67,136.66,20.36169817]
[1764170771693,1e-08,136.67,136.66,27.8022939]
[1764170774087,16.308864,136.75,136.67,9.09426806]
[1764170774286,16.968864,136.75,136.72,7.44059573]
[1764170774510,0.2,136.76,136.74,7.31314904]
[1764170774891,17.168864,136.76,136.75,3.28]
[1764170775315,0.86,136.76,136.75,3.28]
[1764170775894,0.2,136.76,136.75,3.28]
[1764170776110,0.2,136.76,136.75,10.72059573]
[1764170776417,0.2,136.79,136.75,11.43059573]
[1764170776621,0.2,136.79,136.76,28.71058292]
[1764170776817,0.2,136.79,136.78,3.11830449]
[1764170777308,1e-08,136.79,136.78,3.40262763]
[1764170777507,1e-08,136.79,136.78,4.11262763]
[1764170777693,1e-08,136.79,136.78,0.71]
[1764170777896,1e-08,136.79,136.78,4.11262763]
[1764170778117,1e-08,136.79,136.78,3.40262763]
[1764170778521,1e-08,136.79,136.78,10.71363801]
[1764170778920,1e-08,136.81,136.79,0.71]
[1764170779100,1e-08,136.81,136.8,6.39830449]
[1764170779428,0.66000001,136.81,136.79,3.11830449]
[1764170779733,0.66000001,136.81,136.8,3.28]
[1764170780021,1e-08,136.81,136.8,6.39830449]
[1764170780396,1e-08,136.81,136.8,3.28]
[1764170780624,1e-08,136.81,136.8,13.70824601]
[1764170781010,1e-08,136.81,136.8,10.58994152]
[1764170781832,0.66000001,136.81,136.8,10.58994152]
[1764170782043,1e-08,136.81,136.8,10.58994152]
[1764170783131,1e-08,136.81,136.8,13.70824601]
[1764170783334,0.66000001,136.81,136.8,10.58994152]
[1764170784016,1e-08,136.81,136.8,10.58994152]
[1764170784438,1e-08,136.81,136.8,13.70824601]
[1764170784741,0.66000001,136.81,136.8,10.58994152]
[1764170785316,1e-08,136.81,136.8,10.58994152]
[1764170785717,0.66000001,136.81,136.8,10.58994152]
[1764170786545,1e-08,136.81,136.8,10.58994152]
[1764170786748,1e-08,136.81,136.8,13.70824601]
[1764170787416,1e-08,136.81,136.8,23.51251407]
[1764170787915,0.66,136.89,136.8,23.51251407]
[1764170787916,0.2,136.93,136.82,8.80994492]
[1764170788115,0.66,136.92,136.88,3.11830449]
[1764170788338,0.66,136.92,136.89,3.28]
[1764170788520,24.38157195,136.92,136.89,3.28]
[1764170788715,7.41270795,136.9,136.84,0.28432314]
[1764170788919,8.07270795,136.89,136.85,3.28]
[1764170789120,0.66,136.89,136.85,10.69270795]
[1764170789332,0.66,136.88,136.85,10.69270795]
[1764170789547,0.66,136.88,136.86,7.30673681]
[1764170790115,0.66,136.88,136.86,14.71944476]
[1764170790641,23.72157195,136.91,136.86,32.98628678]
[1764170790852,0.66,136.88,136.86,7.30673681]
[1764170791025,0.66,136.88,136.85,10.5870506]
[1764170791218,0.66,136.88,136.85,17.99975855]
[1764170791636,0.66,136.88,136.85,36.26793538]
[1764170792637,0.66,136.9,136.86,7.41270795]
[1764170793639,8.07270795,136.9,136.87,7.30620296]
[1764170793951,8.07270795,136.9,136.87,10.58620296]
[1764170794137,0.66,136.89,136.87,10.58620296]
[1764170796228,0.66,136.89,136.87,28.85171037]
[1764170798537,0.66,136.89,136.87,10.58620296]
[1764170798841,0.66,136.89,136.87,3.28]
[1764170799038,0.66,136.89,136.87,10.58618189]
[1764170800444,7.41270795,136.91,136.87,28.8516893]
[1764170800660,0.66,136.9,136.87,28.8516893]
[1764170801151,8.07270795,136.9,136.88,3.28]
[1764170801454,7.41270795,136.89,136.88,3.28]
[1764170801663,8.07270795,136.89,136.83,0.14216157]
[1764170801830,16.968864,136.89,136.84,10.58780473]
[1764170802035,0.66,136.88,136.85,7.41270795]
[1764170802258,0.66,136.88,136.86,7.30673681]
[1764170802475,0.66,136.88,136.87,3.28]
[1764170803757,0.66,136.88,136.87,10.58620296]
[1764170804228,0.7,136.9,136.87,17.99891091]
[1764170804648,16.308864,136.92,136.87,36.26441832]
[1764170804852,0.7,136.91,136.87,36.26441832]
[1764170805058,8.11270795,136.91,136.88,3.28]
[1764170805432,0.7,136.9,136.88,3.28]
[1764170805644,23.72157195,136.92,136.89,7.30513551]
[1764170805842,17.008864,136.91,136.89,7.30513551]
[1764170806242,0.7,136.9,136.89,7.30513551]
[1764170806855,16.308864,136.91,136.89,7.30513551]
[1764170807046,17.008864,136.91,136.89,7.30513551]
[1764170807243,0.9,136.93,136.89,32.98068223]
[1764170807469,0.9,136.93,136.89,25.56797428]
[1764170807674,0.7,136.92,136.89,25.56797428]
[1764170808236,0.7,136.92,136.89,32.98068223]
[1764170808550,0.7,136.92,136.89,30.43146572]
[1764170809765,0.7,136.92,136.89,25.56797428]
[1764170810339,16.508864,136.93,136.89,30.43146572]
[1764170810672,17.208864,136.93,136.9,8.14349144]
[1764170810972,16.508864,136.93,136.9,8.14349144]
[1764170811161,17.208864,136.93,136.9,8.14349144]
[1764170811337,0.9,136.93,136.9,8.14349144]
[1764170811773,0.9,136.93,136.91,7.30406836]
[1764170812011,0.9,136.93,136.92,3.28]
[1764170812777,0.9,136.93,136.87,18.26453264]
[1764170812986,0.7,136.92,136.88,8.14349144]
[1764170813479,0.7,136.92,136.88,3.28]
[1764170813682,0.7,136.92,136.88,8.14349144]
[1764170813875,0.7,136.92,136.89,25.56797428]
[1764170814080,0.2,136.93,136.91,4.86349144]
[1764170814281,0.2,136.93,136.92,3.28]
[1764170814476,0.2,136.93,136.92,8.14349144]
[1764170814676,1e-08,136.93,136.92,17.9377595]
[1764170814920,1e-08,136.93,136.92,22.80125094]
[1764170815218,1e-08,136.96,136.94,0.28432314]
[1764170815420,1e-08,136.96,136.95,17.65343636]
[1764170815583,1e-08,136.96,136.95,17.9377595]
[1764170815909,3.02600855,137.08,136.96,9.09426806]
[1764170815910,0.7,137.04,136.96,9.09426806]
[1764170816079,0.7,137.06,137.03,4.86349144]
[1764170816285,0.7,137.07,137.03,3.28]
[1764170816483,4.86349144,137.05,137.03,3.28]
[1764170816704,4.86349144,137.06,137.03,3.28]
[1764170816883,0.7,137.05,137.03,3.28]
[1764170817404,0.1,137.08,137.03,3.28]
[1764170817590,0.7,137.07,137.03,3.28]
[1764170817783,0.7,137.07,137.06,7.29607471]
[1764170817979,16.408864,137.08,137.06,7.29607471]
[1764170818192,0.1,137.09,137.07,8.84349144]
[1764170818400,0.1,137.09,137.08,5.14781458]
[1764170818600,0.1,137.09,137.08,9.79426806]
[1764170818907,0.1,137.09,137.08,14.6577595]
[1764170819421,0.2,137.11,137.1,0.28432314]
[1764170819610,0.2,137.11,137.1,8.40781458]
[1764170819787,0.2,137.11,137.1,15.7017606]
[1764170820210,0.2,137.11,137.1,20.34821408]
[1764170820412,0.1,137.14,137.13,9.09426806]
[1764170820613,0.1,137.16,137.15,0.28432314]
[1764170820814,0.1,137.16,137.15,13.13299427]
[1764170821015,0.2,137.17,137.16,0.28432314]
[1764170821313,0.1,137.19,137.18,0.28432314]
[1764170821495,0.1,137.19,137.18,13.13299427]
[1764170821900,0.1,137.19,137.18,20.42268664]
[1764170822418,0.1,137.19,137.18,20.1383635]
[1764170823092,0.1,137.19,137.18,20.42268664]
[1764170824811,0.1,137.19,137.18,20.1383635]
[1764170825007,0.1,137.19,137.18,7.28969237]
[1764170825197,0.1,137.19,137.18,20.1383635]
[1764170825398,0.1,137.19,137.18,7.57401551]
[1764170825706,0.1,137.19,137.18,7.28969237]
[1764170826616,0.79,137.19,137.18,3.26]
[1764170828118,13.63867113,137.19,137.18,3.26]
[1764170828504,20.92790816,137.19,137.15,3.26]
[1764170828706,0.69,137.18,137.14,12.84867113]
[1764170829021,12.84867113,137.17,137.13,3.26]
[1764170829210,0.69,137.18,137.14,13.56867113]
[1764170829605,0.69,137.18,137.14,12.84867113]
[1764170829807,0.1,137.19,137.16,12.84867113]
[1764170830011,0.69,137.18,137.17,3.26]
[1764170830519,0.69,137.18,137.17,10.5502238]
[1764170830741,0.1,137.19,137.17,10.5502238]
[1764170831024,13.53867113,137.18,137.15,3.26]
[1764170831212,12.84867113,137.16,137.13,3.26]
[1764170831416,0.69,137.17,137.13,10.5519247]
[1764170831601,12.84867113,137.17,137.13,10.5519247]
[1764170831804,0.1,137.19,137.07,0.72]
[1764170831805,12.84867113,137.15,137.07,0.72]
[1764170832008,12.84867113,137.12,137.08,7.29501021]
[1764170832299,16.998864,137.16,137.09,3.26]
[1764170832300,0.69,137.15,137.09,3.26]
[1764170832503,12.84867113,137.11,137.08,3.26]
[1764170832821,12.84867113,137.11,137.08,10.55494438]
[1764170833124,0.69,137.1,137.08,3.26]
[1764170833323,13.53867113,137.1,137.04,21.65861605]
[1764170833517,12.84867113,137.08,137.05,3.26]
[1764170833933,0.69,137.07,137.05,3.26]
[1764170834224,0.66,137.08,137.05,3.26]
[1764170834594,0.66,137.08,137.06,7.29607471]
[1764170835824,0.66,137.08,137.05,10.5564252]
[1764170836023,13.50867113,137.08,137.05,10.5564252]
[1764170836197,13.50867113,137.08,137.02,8.80994492]
[1764170836398,13.50867113,137.07,137.03,3.26]
[1764170836605,13.50867113,137.07,137.04,7.29713952]
[1764170837033,12.84867113,137.07,137.04,7.29713952]
[1764170837228,0.66,137.06,137.04,7.29713952]
[1764170838118,12.84867113,137.05,137.03,10.55753442]
[1764170838505,0.66,137.04,137.03,10.55753442]
[1764170839844,29.15753513,137.06,137.03,28.80171452]
[1764170840012,16.968864,137.06,137.03,28.80171452]
[1764170840346,12.84867113,137.09,137.05,12.84867113]
[1764170840514,16.308864,137.07,137.06,7.29607471]
[1764170841442,16.968864,137.07,137.06,7.29607471]
[1764170841622,16.968864,137.07,137.05,7.2964844]
[1764170842213,0.66,137.06,137.05,7.2964844]
[1764170842407,16.968864,137.07,137.05,7.2964844]
[1764170842632,16.968864,137.07,137.04,38.38748012]
[1764170842843,0.66,137.07,137.04,25.53880899]
[1764170843012,0.66,137.06,137.04,25.53880899]
[1764170843518,29.81753513,137.08,137.04,25.53880899]
[1764170843739,0.66,137.07,137.04,25.53880899]
[1764170844120,0.66,137.07,137.04,38.38748012]
[1764170844849,16.308864,137.08,137.04,38.38748012]
[1764170845047,16.308864,137.08,137.05,0.28432314]
[1764170845341,16.308864,137.08,137.06,16.10867113]
[1764170845526,16.968864,137.08,137.06,3.26]
[1764170845848,16.308864,137.08,137.06,3.26]
[1764170846146,16.968864,137.08,137.06,3.26]
[1764170846928,16.308864,137.08,137.07,7.29554242]
[1764170847522,16.968864,137.08,137.07,7.29554242]
[1764170848444,16.968864,137.08,137.06,10.5558973]
[1764170849015,0.66,137.07,137.06,10.5558973]
[1764170849444,16.308864,137.08,137.06,10.5558973]
[1764170849818,0.66,137.12,137.07,13.79299427]
[1764170850025,0.66,137.15,137.11,12.84867113]
[1764170850212,16.308864,137.13,137.12,3.26]
[1764170850436,0.66,137.15,137.12,3.26]
[1764170850643,16.968864,137.15,137.12,3.26]
[1764170851139,16.968864,137.14,137.13,7.29235032]
[1764170851314,0.66,137.16,137.13,25.52322613]
[1764170851520,0.66,137.16,137.13,38.37189726]
[1764170851824,0.66,137.16,137.13,25.52322613]
[1764170852142,13.50867113,137.16,137.12,10.55273744]
[1764170852342,13.50867113,137.16,137.12,23.40140857]
[1764170852559,0.66,137.15,137.12,41.63361393]
[1764170853146,16.968864,137.16,137.12,41.63361393]
[1764170853722,0.66,137.15,137.12,41.63361393]
[1764170854629,16.308864,137.16,137.12,41.63361393]
[1764170854940,16.308864,137.18,137.14,12.84867113]
[1764170855144,29.81753513,137.18,137.15,3.26]
[1764170855314,29.81753513,137.18,137.15,16.10867113]
[1764170855315,16.968864,137.18,137.15,16.10867113]
[1764170855749,0.1,137.19,137.16,12.84867113]
[1764170856054,0.76,137.19,137.16,12.84867113]
[1764170856425,12.84867113,137.18,137.16,7.29075532]
[1764170856746,13.60867113,137.19,137.16,25.51764362]
[1764170856955,16.308864,137.17,137.13,7.29235032]
[1764170857145,12.84867113,137.17,137.13,25.52237627]
[1764170857348,0.66,137.16,137.14,3.26]
[1764170857561,0.66,137.17,137.14,16.10867113]
[1764170857757,0.1,137.19,137.16,12.84867113]
[1764170857927,0.1,137.19,137.17,16.10867113]
[1764170858251,0.1,137.19,137.18,12.84867113]
[1764170858430,0.1,137.19,137.18,20.42268664]
[1764170858839,16.968864,137.23,137.18,21.08268664]
[1764170859160,0.66,137.29,137.23,0.28432314]
[1764170859466,13.50867113,137.28,137.24,16.10867113]
[1764170859757,16.308864,137.26,137.24,16.10867113]
[1764170860051,0.66,137.28,137.24,3.26]